Cogmind - Beta 14 *** ADVENTURER MODE // 2024.10.18 @ 22:55:52 Player: Gilgameshx13 Result: Destroyed by B-75 Beast with Magnetic Acceleration Cannon Performance ------------- Evolutions (4) 2000 Regions Visited (8) 1600 Robots Destroyed (74) 370 Value Destroyed (2651) 2651 Prototype IDs (3) 60 Alien Tech Used (0) 0 Bonus (700) 700 TOTAL SCORE: 7381 Bonus ------- Entered Garrisons 200 Used RIF Installer 500 Cogmind --------- Core Integrity 0/850 Matter 99/300 Energy 418/445 System Corruption 12% Temperature Cool (0) Movement Hovering (248) Ox4 Location -6/Lower Caves Parts ------- > --- POWER (2) -------- Improved Ion Engine Heavy Ion Engine > --- PROPULSION (4) --- Improved Gravmag System Improved Gravmag System Improved Gravmag System Improved Gravmag System > --- UTILITY (7) ------ Improved Heat Sink Cargo Storage Unit Transport Network Coupler Improved Thermal Shield > --- WEAPON (2) ------- Heavy Laser > --- INVENTORY (30) --- Armored Huge Wheel Gravmag System Improved Gravmag System Improved Gravmag System Improved Heat Sink Medium Storage Unit Huge Storage Unit Improved Launcher Guidance Computer Improved Launcher Guidance Computer Transmission Jammer Improved Thermal Shield Authchip [R/Combat] Authchip [Power] Authchip [Processor] Field Recycling Unit (0) Field Recycling Unit (0) Field Recycling Unit (0) Drone Bay (2/2) Drone Bay (2/2) Drone Bay (2/2) Drone Bay (2/2) Drone Bay (2/2) Drone Bay (2/2) Drone Bay (1/2) Powered Hammer Peak State ------------ > --- POWER ------------ Improved Ion Engine Heavy Ion Engine > --- PROPULSION ------- Improved Gravmag System Improved Gravmag System Improved Gravmag System Improved Gravmag System > --- UTILITY ---------- Improved Heat Sink Cargo Storage Unit Transport Network Coupler Improved Thermal Shield Drone Bay > --- WEAPON ----------- Shock Rifle Heavy Laser > --- INVENTORY -------- Armored Huge Wheel Gravmag System Improved Gravmag System Improved Gravmag System Improved Gravmag System Improved Gravmag System Improved Heat Sink Medium Storage Unit Huge Storage Unit Improved Launcher Guidance Computer Improved Launcher Guidance Computer Transmission Jammer Improved Thermal Shield Authchip [R/Combat] Authchip [Power] Authchip [Processor] Field Recycling Unit Field Recycling Unit Field Recycling Unit Drone Bay Drone Bay Drone Bay Drone Bay Drone Bay Drone Bay Drone Bay Powered Hammer [Rating: 60] Favorites ----------- Power Heavy Ion Engine Engine Heavy Ion Engine Power Core Light Nuclear Core Propulsion Improved Treads Treads Improved Treads Leg Improved Aluminum Leg Wheel Wheel Hover Unit Improved Gravmag System Utility Cargo Storage Unit Device Heat Sink Storage Cargo Storage Unit Processor Transport Network Coupler Protection Medium Armor Plating Weapon Particle Gun Energy Gun Particle Gun Ballistic Gun Autogun Ballistic Cannon Advanced Assault Cannon Launcher Rocket Launcher Impact Weapon Powered Hammer Build | -11 -10 -9 -9 -9 -9 -7 -6 -6 ------- Run | Yrd Mat Mat Sto Gar Rec Fac Fac Low Slots Evolved 8 | . . 2 . . . 4 2 . Power 1 | . . . . . . 1 . . Propulsion 2 | . . 1 . . . 1 . . Utility 5 | . . 1 . . . 2 2 . Weapon . | . . . . . . . . . Parts Attached 78 | 6 2 2 18 2 2 11 24 11 Power 10 | 1 . . 1 . . 2 5 1 Engine 6 | 1 . . 1 . . 1 2 1 Core 4 | . . . . . . 1 3 . Reactor . | . . . . . . . . . Propulsion 24 | 2 2 1 10 1 . 1 5 2 Treads 5 | . . . 3 1 . 1 . . Leg 3 | . . . 3 . . . . . Wheel 10 | 2 2 1 4 . . . 1 . Hover 6 | . . . . . . . 4 2 Flight . | . . . . . . . . . Utility 23 | 1 . . 3 1 . 7 9 2 Device 15 | . . . 1 1 . 5 6 2 Storage 2 | 1 . . 1 . . . . . Processor 2 | . . . . . . . 2 . Hackware . | . . . . . . . . . Protection 4 | . . . 1 . . 2 1 . Artifact . | . . . . . . . . . Weapon 21 | 2 . 1 4 . 2 1 5 6 Energy Gun 12 | 1 . 1 2 . 1 . 3 4 Energy Cannon . | . . . . . . . . . Ballistic Gun 3 | 1 . . 2 . . . . . Ballistic Cannon 2 | . . . . . . 1 1 . Launcher 3 | . . . . . 1 . . 2 Special Weapon . | . . . . . . . . . Impact Weapon 1 | . . . . . . . 1 . Slashing Weapon . | . . . . . . . . . Piercing Weapon . | . . . . . . . . . Special Melee Weapon . | . . . . . . . . . Unidentified Prototypes 1 | . . . 1 . . . . . Parts Lost 36 | . 2 . 5 1 . 4 16 8 Power 6 | . . . . . . 1 4 1 Propulsion 10 | . 1 . 4 . . . 3 2 Utility 10 | . . . . . . 3 6 1 Weapon 10 | . 1 . 1 1 . . 3 4 Highest Loss Streak 8 | . 2 . 1 1 . 4 8 3 To Critical Strikes . | . . . . . . . . . Average Slot Usage (%) 78 | . 82 70 87 81 81 83 56 76 Engine 10 | . 14 11 11 11 11 6 4 11 Treads 14 | . . . . 33 33 29 5 . Leg 1 | . . . 5 . . . . . Wheel 6 | . 26 33 24 . . . . . Hover 6 | . . . . . . . 6 25 Device 10 | . . . 10 11 11 16 11 7 Storage 9 | . 14 11 11 11 11 7 6 6 Processor 1 | . . . . . . . 1 6 Protection 1 | . . . 1 . . 3 2 2 Energy Gun 11 | . 12 4 7 15 15 11 7 9 Ballistic Gun 3 | . 14 11 14 . . . . . Peak Build Rating 60 | 6 6 7 23 23 24 37 54 60 Average Rating 28 | 4 5 6 17 21 22 33 34 48 On Entrance 19 | . 6 5 7 23 21 24 37 50 Naked Turns . | . . . . . . . . . Heaviest Build 177 | 12 12 12 155 155 155 170 177 170 Greatest Support 92 | 26 26 30 69 69 69 92 92 40 Greatest Overweight (x) 53 | 1 1 . 7 2 2 2 53 4 Average Overweight (x) 3 | . . . 4 2 2 1 7 3 Largest Inventory Capacity 30 | 8 8 8 30 30 30 30 30 30 Average Capacity 27 | 7 8 8 25 30 30 30 30 30 Most Carried 30 | 6 8 8 30 27 30 30 30 30 Average Carried 25 | 4 6 6 20 26 29 29 26 28 Final Capacity 30 | 8 8 8 30 30 30 30 30 30 Final Carried 30 | 6 7 8 26 27 30 30 30 26 Class Distribution -------------------- 90% | Hauler-Mutant 9% | Mutant Dominant Class ---------------- Mutant | -10/Materials Mutant | -9/Materials Hauler-Mutant | -9/Storage Hauler-Mutant | -9/Garrison Hauler-Mutant | -9/Recycling Hauler-Mutant | -7/Factory Hauler-Mutant | -6/Factory Hauler-Mutant | -6/Lower Caves Resources | -11 -10 -9 -9 -9 -9 -7 -6 -6 ----------- Run | Yrd Mat Mat Sto Gar Rec Fac Fac Low Matter Collected 1911 | 158 112 50 576 152 56 183 393 231 Remotely . | . . . . . . . . . Salvage Created 2479 | . 55 69 979 364 48 232 497 235 Parts 123 | . 7 8 54 15 2 9 18 10 Haulers Intercepted . | . . . . . . . . . Recyclers Shooed 1 | . . . . . . . 1 . Parts Field Recycled . | . . . . . . . . . Retrieved Matter . | . . . . . . . . . Parts Self-Destructed 9 | . . . . . . . . 9 Prevented . | . . . . . . . . . Kills | -11 -10 -9 -9 -9 -9 -7 -6 -6 ------- Run | Yrd Mat Mat Sto Gar Rec Fac Fac Low Combat Hostiles Destroyed 69 | . 3 2 24 11 1 6 13 9 Melee 1 | . . . . . . . 1 . Guns 51 | . 3 2 24 10 1 2 3 6 Cannons 6 | . . . . . . 4 2 . AOE 7 | . . . . . . . 4 3 Classes Destroyed 10 | . 2 1 2 . . 2 2 1 Worker 1 | . . . 1 . . . . . Builder 1 | . . . . . . . 1 . Recycler 1 | . . . . . . . 1 . Watcher 2 | . 1 . 1 . . . . . Swarmer 22 | . 3 . 6 4 . . 4 5 Grunt 24 | . . 2 9 4 . 3 6 . Brawler 1 | . . . . . . 1 . . Sentry 15 | . . . 9 3 1 1 . 1 Hunter 2 | . . . . . . . . 2 Programmer 5 | . . . . . . 1 3 1 Best Kill Streak 6 | . 4 2 6 4 1 4 5 4 Combat Bots Only 6 | . 3 2 6 4 1 4 4 4 Max Kills in Single Turn 5 | . 1 1 2 1 1 1 5 1 Gunslinging 1 | . . . 1 . . . . . Exploded 4 | . . . . . . . 4 1 Melee 1 | . . . . . . . 1 . Uniques/NPCs Destroyed . | . . . . . . . . . Combat | -11 -10 -9 -9 -9 -9 -7 -6 -6 -------- Run | Yrd Mat Mat Sto Gar Rec Fac Fac Low Hostile Shots Fired 636 | . 44 13 122 60 6 81 188 122 Missed 187 | . 8 6 41 16 2 33 37 44 Damage Taken 5311 | . 251 60 820 408 46 487 2361 878 Core 1210 | . 73 17 147 63 23 30 743 114 Absorbed by Shields . | . . . . . . . . . Redirected to Shielding 15 | . . . . . . 15 . . Ignored by Resistances 1434 | . 83 19 238 120 12 147 568 247 Core Remaining (%) 75 | 100 70 . . . 37 95 . . Volleys Fired 203 | . 13 17 76 23 4 21 26 23 Largest 2 | . 2 1 2 2 1 2 2 2 Hottest 134 | . 60 20 121 121 65 130 134 134 Shots Fired 372 | . 26 17 148 38 8 42 51 42 Gun 330 | . 26 17 148 38 8 28 35 30 Cannon 30 | . . . . . . 14 16 . Launcher 12 | . . . . . . . . 12 Special . | . . . . . . . . . Kinetic 177 | . 13 17 117 . . 14 16 . Thermal 176 | . 13 . 31 38 8 28 35 23 Explosive 12 | . . . . . . . . 12 Electromagnetic 7 | . . . . . . . . 7 Robot Hit Streak 31 | . 6 14 23 21 26 27 31 12 Robot Miss Streak 2 | . 1 1 2 2 . 2 1 2 Penetration Max . | . . . . . . . . . Secondary Targets 7 | . 1 . 6 . . . . . Max Gunslinging Chain 1 | . 1 . 1 . . . . . Shots Hit Robots 326 | . 22 16 131 32 5 36 53 31 Core Hits 126 | . 7 5 40 15 2 14 22 21 Critical Kills 1 | . . . . . . . 1 . Critical Parts Destroyed 1 | . . . . . . . 1 . Critical Strikes 13 | . . . 3 1 . 1 7 1 Burn 9 | . . . 3 1 . . 4 1 Blast 2 | . . . . . . 1 1 . Smash 2 | . . . . . . . 2 . Melee Attacks 8 | . . . . . . . 8 . Impact 8 | . . . . . . . 8 . Slashing . | . . . . . . . . . Piercing . | . . . . . . . . . Sneak Attacks . | . . . . . . . . . Combat Hostiles . | . . . . . . . . . Follow-up Attacks . | . . . . . . . . . Damage Inflicted 6436 | . 199 132 1948 505 75 717 2010 850 Guns 4196 | . 199 132 1948 505 75 386 569 382 Cannons 594 | . . . . . . 331 263 . Explosions 1335 | . . . . . . . 867 468 Melee 311 | . . . . . . . 311 . Ramming . | . . . . . . . . . Kinetic 2348 | . 88 132 1534 . . 331 263 . Thermal 2367 | . 111 . 414 505 75 386 569 307 Explosive 1335 | . . . . . . . 867 468 Electromagnetic 75 | . . . . . . . . 75 Impact 311 | . . . . . . . 311 . Slashing . | . . . . . . . . . Piercing . | . . . . . . . . . Highest Corruption 12 | . . . 4 4 4 . 12 12 Average Corruption 7 | . . . 3 4 4 . 10 12 Corruption Purged 1 | . . . . . . . 1 . Corruption Blocked . | . . . . . . . . . Effects 148 | . . . 4 13 45 . 27 59 Message Errors 35 | . . . 1 3 9 . 8 14 Matter Fused 35 | . . . . 2 12 . 5 16 Heat Flow Errors 22 | . . . . 3 9 . 3 7 Energy Discharges 20 | . . . . . 5 . 7 8 Data Loss (minor) 16 | . . . 3 1 4 . 3 5 Data Loss (major) 7 | . . . . . 1 . 1 5 Misfires 11 | . . . . 4 4 . . 3 Alerts 2 | . . . . . 1 . . 1 Overload Shots . | . . . . . . . . . Overflow Damage 274 | . . . . . . . 246 28 Projectiles . | . . . . . . . . . Explosions 143 | . . . . . . . 115 28 Melee 131 | . . . . . . . 131 . Knockbacks 8 | . . . . . . 5 3 . Impact 1 | . . . . . . . 1 . Kinetic 7 | . . . . . . 5 2 . Secondary . | . . . . . . . . . Self-Inflicted Damage 190 | . . . . . . . 171 19 Shots 4 | . . . . . . . 3 1 Rammed 1 | . . . . . . . 1 . Targets Rammed 1 | . . . . . . . 1 . Kicked . | . . . . . . . . . Crushed . | . . . . . . . . . Highest Temperature 515 | . 71 3 179 515 268 279 184 247 Average Temperature 77 | . 27 3 38 228 90 106 45 65 Received Heat Transfer 1227 | . 84 42 474 198 27 240 102 60 Effects 8 | . . . . 7 1 . . . Shutdowns 1 | . . . . 1 . . . . Energy Bleed 1 | . . . . 1 . . . . Interference 1 | . . . . . 1 . . . Matter Decay 3 | . . . . 3 . . . . Short Circuit 1 | . . . . 1 . . . . Damage (minor) 1 | . . . . 1 . . . . Siege Activations . | . . . . . . . . . Robots Corrupted 1 | . . . . . . . 1 . Combat Hostiles 1 | . . . . . . . 1 . Parts Fried 1 | . . . . . . . 1 . Impact Corruptions 7 | . . . . . . . 7 . Robots Melted 3 | . . . . 1 . . 2 . Combat Hostiles 3 | . . . . 1 . . 2 . Parts Melted 26 | . 1 . 4 10 2 4 4 1 Heat Transferred 6017 | . 250 . 1258 1179 185 888 1480 777 Parts Sabotaged . | . . . . . . . . . Parts Stolen . | . . . . . . . . . Parts Stripped . | . . . . . . . . . Power Chain Reactions . | . . . . . . . . . Alert | -11 -10 -9 -9 -9 -9 -7 -6 -6 ------- Run | Yrd Mat Mat Sto Gar Rec Fac Fac Low Peak Influence 382 | . 117 99 382 270 103 112 175 . Initial 103 | . . 34 35 19 103 . 18 . Average 85 | . 45 63 175 164 17 29 78 . Maximum Alert Level 1 | . . . 1 1 . . . . Low Security (%) 87 | 100 100 100 66 64 100 100 100 . Level 1 12 | . . . 33 35 . . . . Level 2 . | . . . . . . . . . Level 3 . | . . . . . . . . . Level 4 . | . . . . . . . . . Level 5 . | . . . . . . . . . High Security . | . . . . . . . . . Max Security . | . . . . . . . . . Squads Dispatched 14 | . 1 2 4 . . 3 4 . Investigation 4 | . 1 1 2 . . . . . Extermination 4 | . . . . . . 1 3 . Reinforcement 6 | . . 1 2 . . 2 1 . Assault . | . . . . . . . . . Garrison . | . . . . . . . . . Intercept . | . . . . . . . . . Searches Triggered . | . . . . . . . . . Construction Impeded . | . . . . . . . . . Haulers Reinforced . | . . . . . . . . . Active Scanning Responses . | . . . . . . . . . Cargo Convoy Interrupts . | . . . . . . . . . Stealth | -11 -10 -9 -9 -9 -9 -7 -6 -6 --------- Run | Yrd Mat Mat Sto Gar Rec Fac Fac Low Distress Signals 4 | . 1 . 3 . . . . . Communications Jammed . | . . . . . . . . . Distress Signals . | . . . . . . . . . Times Spotted 90 | . 10 3 32 10 1 8 15 11 Peak Tracking Total 7 | . 7 2 5 4 1 4 5 4 Tactical Retreats 5 | . . . 1 1 . 1 . 2 Traps | -11 -10 -9 -9 -9 -9 -7 -6 -6 ------- Run | Yrd Mat Mat Sto Gar Rec Fac Fac Low Traps Triggered 7 | . . . 6 . . . . 1 Indirectly . | . . . . . . . . . Trap Hack Attempts . | . . . . . . . . . Triggered . | . . . . . . . . . Disarmed . | . . . . . . . . . Reprogrammed . | . . . . . . . . . Reused . | . . . . . . . . . Traps Extracted . | . . . . . . . . . Installed . | . . . . . . . . . Triggered 3 | . . . . . . . . 3 Machines | -11 -10 -9 -9 -9 -9 -7 -6 -6 ---------- Run | Yrd Mat Mat Sto Gar Rec Fac Fac Low Machines Disabled 5 | . . . . . 1 . 4 . Max in Single Turn 4 | . . . . . 1 . 4 . Machines Repaired . | . . . . . . . . . Machines Dismantled . | . . . . . . . . . Machines Sabotaged . | . . . . . . . . . Overloaded Fab Kills . | . . . . . . . . . Hacking | -11 -10 -9 -9 -9 -9 -7 -6 -6 --------- Run | Yrd Mat Mat Sto Gar Rec Fac Fac Low Machines Accessed 19 | . 2 1 10 1 4 . . 1 Terminals 17 | . 2 1 9 1 4 . . . Fabricators . | . . . . . . . . . Repair Stations . | . . . . . . . . . Recycling Units . | . . . . . . . . . Scanalyzers . | . . . . . . . . . Garrison Access 1 | . . . 1 . . . . . Total Hacks 41 | . 6 2 23 1 8 . . 1 Successful 26 | . 3 . 14 1 7 . . 1 Failed 15 | . 3 2 9 . 1 . . . Catastrophic 2 | . 1 . 1 . . . . . Database Lockouts . | . . . . . . . . . Manual 19 | . 4 2 8 . 5 . . . Terminals 37 | . 6 2 20 1 8 . . . Fabricators . | . . . . . . . . . Repair Stations . | . . . . . . . . . Recycling Units . | . . . . . . . . . Scanalyzers . | . . . . . . . . . Garrison Access 3 | . . . 3 . . . . . Terminal Hacks 17 | . 2 . 10 1 3 . . 1 Prototype ID Bank 1 | . 1 . . . . . . . Open Door 7 | . . . 5 1 . . . 1 Branch Access Points 1 | . . . 1 . . . . . Alert Level 1 | . . . 1 . . . . . Unreport Threat 3 | . . . 2 . 1 . . . Recall Reinforcements 1 | . 1 . . . . . . . Zone Layout 3 | . . . 1 . 2 . . . Fabricator Hacks . | . . . . . . . . . Repair Station Hacks . | . . . . . . . . . Recycling Unit Hacks . | . . . . . . . . . Scanalyzer . | . . . . . . . . . Garrison Access Hacks 2 | . . . 2 . . . . . Unlock Access 1 | . . . 1 . . . . . Coupler Status 1 | . . . 1 . . . . . Unauthorized Hacks 7 | . 1 . 2 . 4 . . . Terminals 7 | . 1 . 2 . 4 . . . Botnet 7 | . 1 . 2 . 4 . . . Fabricators . | . . . . . . . . . Repair Stations . | . . . . . . . . . Recycling Units . | . . . . . . . . . Scanalyzers . | . . . . . . . . . Garrison Access . | . . . . . . . . . Data Cores Recovered . | . . . . . . . . . Used . | . . . . . . . . . Hacking Detections 9 | . 1 1 4 1 2 . . . Full Trace Events 3 | . 1 1 1 . . . . . Feedback Events . | . . . . . . . . . Feedback Blocked . | . . . . . . . . . Robot Schematics Acquired . | . . . . . . . . . Robots Built . | . . . . . . . . . Authchips . | . . . . . . . . . Time . | . . . . . . . . . Total Robot Build Rating . | . . . . . . . . . Part Schematics Acquired . | . . . . . . . . . Parts Built . | . . . . . . . . . Authchips . | . . . . . . . . . Time . | . . . . . . . . . Total Part Build Rating . | . . . . . . . . . Parts Repaired . | . . . . . . . . . Time . | . . . . . . . . . Parts Recycled . | . . . . . . . . . Recycled Matter . | . . . . . . . . . Retrieved Matter . | . . . . . . . . . Retrieved Components . | . . . . . . . . . Parts Scanalyzed . | . . . . . . . . . Part Schematics Acquired . | . . . . . . . . . Parts Damaged . | . . . . . . . . . Bothacking | -11 -10 -9 -9 -9 -9 -7 -6 -6 ------------ Run | Yrd Mat Mat Sto Gar Rec Fac Fac Low Used RIF Installer 1 | . . . . 1 . . . . Robots Hacked . | . . . . . . . . . Non-combat . | . . . . . . . . . Combat . | . . . . . . . . . Robot Hacks Applied . | . . . . . . . . . Relay Couplers Released . | . . . . . . . . . Fabnet Peak Effective % . | . . . . . . . . . Robots Rewired . | . . . . . . . . . Allies Hacked . | . . . . . . . . . Hacks Repelled . | . . . . . . . . . Allies | -11 -10 -9 -9 -9 -9 -7 -6 -6 -------- Run | Yrd Mat Mat Sto Gar Rec Fac Fac Low Total Allies . | . . . . . . . . . Largest Group . | . . . . . . . . . Highest-Rated Group . | . . . . . . . . . Highest-Rated Ally . | . . . . . . . . . Total Orders 3 | . . . . . . 1 1 1 EXPLORE 3 | . . . . . . 1 1 1 Ally Attacks . | . . . . . . . . . Total Damage . | . . . . . . . . . Kills . | . . . . . . . . . Allies Corrupted . | . . . . . . . . . Allies Melted 1 | . . . . . . . . 1 Intel | -11 -10 -9 -9 -9 -9 -7 -6 -6 ------- Run | Yrd Mat Mat Sto Gar Rec Fac Fac Low Robot Analysis Total . | . . . . . . . . . Derelict Logs Recovered . | . . . . . . . . . Drone Launches 6 | . . . . . . 2 2 2 Drone Recoveries 1 | . . . . . . . 1 . Exploration | -11 -10 -9 -9 -9 -9 -7 -6 -6 ------------- Run | Yrd Mat Mat Sto Gar Rec Fac Fac Low Turns Passed 7370 | 92 230 79 1491 598 1876 539 966 1499 Spaces Moved 2784 | 83 197 52 777 168 581 186 170 570 Core 25 | 9 . . . . . . 16 . Treads 1005 | . . . 8 168 581 186 62 . Legs . | . . . . . . . . . Wheels 1096 | 74 197 52 769 . . . 4 . Hover 658 | . . . . . . . 88 570 Flight . | . . . . . . . . . Fastest Speed 50 | 50 80 80 80 320 320 240 175 198 Average Speed 231 | 89 90 80 151 320 320 240 467 234 Slowest Speed 2700 | 100 95 80 320 320 320 320 2700 248 Overloaded Moves . | . . . . . . . . . Propulsion Burnouts . | . . . . . . . . . Robots Hopped . | . . . . . . . . . Cave-ins Triggered 1 | . . . . . . . 1 . Exploration Rate (%) 36 | 5 34 6 81 32 75 8 5 81 Regions Visited 8 Branch Regions 3 Pre-discovered Areas . | . . . . . . . . . Known Exits Taken 1 | . . . 1 . . . . . Unknown Exits Taken 6 | 1 1 1 . . 1 1 1 . Scrap Searched . | . . . . . . . . . Spaces Dug . | . . . . . . . . . Terrain Destroyed 105 | . . . . . . 1 35 69 Melee . | . . . . . . . . . Projectile 2 | . . . . . . 1 1 . AOE 103 | . . . . . . . 34 69 Terrain Rammed . | . . . . . . . . . Walls Destroyed . | . . . . . . . . . Machines Disabled . | . . . . . . . . . Actions | -11 -10 -9 -9 -9 -9 -7 -6 -6 --------- Run | Yrd Mat Mat Sto Gar Rec Fac Fac Low Total 3350 | 100 229 75 970 198 597 238 251 692 Wait 127 | . 5 2 24 4 1 7 1 83 Move 2775 | 82 196 51 776 166 580 185 169 570 Hop . | . . . . . . . . . Pick Up 116 | 12 7 3 52 2 7 10 19 4 Fast Attach . | . . . . . . . . . Attach 57 | 6 1 2 10 . 1 9 20 8 Detach 2 | . . . . . . 1 1 . Swap 21 | . 1 . 8 2 1 2 4 3 Drop 40 | . 6 . 24 1 3 3 2 1 Fire 203 | . 13 17 76 23 4 21 26 23 Melee 8 | . . . . . . . 8 . Ram 1 | . . . . . . . 1 . Kick . | . . . . . . . . . Crush . | . . . . . . . . . Escape Stasis . | . . . . . . . . . Rewire . | . . . . . . . . . Trap . | . . . . . . . . . Miscellaneous . | . . . . . . . . . Route ------- -11/Scrapyard -10/Materials -9/Materials -9/Storage (discovered 2 exits: Rec / Gar) -9/Garrison -9/Recycling -7/Factory -6/Factory -6/Lower Caves (discovered 1 exit: [*Low]) History --------- Turn | Location | Event 33 | -11/Scrapyard | Discovered new exit (range 16) 93 | -11/Scrapyard | Entered Materials 248 | -10/Materials | Discovered new exit (range 5) 310 | -10/Materials | Build established: Mutant 323 | -10/Materials | Entered another Materials area 323 | -9/Materials | Evolved 2 slots: Propulsion x1, Utility x1 324 | -9/Materials | Discovered new exit (range 5) 402 | -9/Materials | Entered Storage 1006 | -9/Storage | Build established: Hauler-Mutant 1201 | -9/Storage | Identified exit to Recycling 1890 | -9/Storage | Identified exit to Garrison 1893 | -9/Storage | Entered Garrison 2106 | -9/Garrison | Core integrity fell below 50% 2251 | -9/Garrison | Triggered checkpoint 2337 | -9/Garrison | Triggered checkpoint 2389 | -9/Garrison | Installed Relay Interface Framework 2450 | -9/Garrison | Discovered exit to Recycling (range 11) 2491 | -9/Garrison | Entered Recycling 2492 | -9/Recycling | Met a Zionite searching for Scraptown 4308 | -9/Recycling | Discovered new exit (range 14) 4367 | -9/Recycling | Entered Factory 4367 | -7/Factory | Evolved 4 slots: Power x1, Propulsion x1, Utility x2 4412 | -7/Factory | Discovered new exit (range 54) 4744 | -7/Factory | Lost 4 parts (1p3u) 4906 | -7/Factory | Entered another Factory area 4906 | -6/Factory | Evolved 2 slots: Utility x2 5098 | -6/Factory | Crushed by falling debris 5129 | -6/Factory | Lost 8 parts (1p3n3u1w) 5407 | -6/Factory | Core integrity fell below 50% 5415 | -6/Factory | Lost 5 parts (2p2u1w) 5511 | -6/Factory | System corruption reached 10% 5520 | -6/Factory | Core integrity fell below 20% 5745 | -6/Factory | Discovered new exit (range 4) 5872 | -6/Factory | Entered Lower Caves 6567 | -6/Lower Caves | Attracted the attention of an 0b10 checkpoint 6604 | -6/Lower Caves | Lost 3 parts (1p1u1w) 7114 | -6/Lower Caves | Discovered new exit (range 40) 7365 | -6/Lower Caves | Spotted B-75 Beast 7371 | -6/Lower Caves | Destroyed by B-75 Beast with Magnetic Acceleration Cannon Last Messages --------------- System corrupted: Matter fused (-8). System corrupted: FCS attempts to trigger Shock Rifle. System corrupted: Shock Rifle misfires. H=#6C:%984H1GZVEM4SS,/Q#TDK 1DBV2DRAUWSF|%SM0I30BDFB>Open Door Sealed Heavy Doors opened. Acquired Imp. Launcher Guidance Computer. Acquired Unknown Device. Identified Imp. Thermal Shield. Dropped Drone Bay. System corrupted: Matter fused (-9). System corrupted: Energy discharge (-151). System corrupted: Heat flow error (+228). Shock Rifle destroyed. Imp. Gravmag System destroyed. Map ----- +----------------------------------------------------+ | ????????????????????????????### ### ## | | ??????????????????????????### # | | ??????????????????????????# | | ??????????????????????????# | | ??????????????????????????########## | | ????????????????????????????????#### ### | | ???????????????????????????###### #### | | ???????????????????????????# ### | | ???????????????????????????## ## | | ###?????????????????????????# ## ### | | ####??????????????????????# ####### | | #"######### ???????## #???## ## | | < %! B ???????## ##?## #### | | %%!%! BB ?????# ### #?## | | #######"###????? ????# ### #### | | #????????????? ???# #??# ### | | ####???????????; ???# #???# #?## | | #???????????# ;???## #????#### ##??# | | ## #??????????## ;#???##???????## ###???# | | #### #?????????## #??########### ##?????# | | ##??# #####????## ### #??????### | | #??## ## ##???# ## ####### ####### | | #### #???# #?# ## #?????# ### ## # | | ##### ##### #?????## ##### | | ## ## #??????######## | | #?## # @% ####?????????## | | # #???# # ## % ##?????????# ## | | ##????## ## ## ##????????# ##### | | ???????# ## ### ## #???????## #???# | | ??????## ## ### #????#### #??## | | ????### ## #?## ## ###### #?## | | ???## ## ## #####??## ### #?# # | | ???# ## ### #???????###?# ### | | ???#### #?## #???????????# ###### | | ??????## #??###???????????# #????## # | | ???????## ###????????????????# ##?????######### | | ????????#####??????????????????####??????????????? | | ?????????????????????????????????????????????????? | | ?????????????????????????????????????????????????? | | ?????????????????????????????????????????????????? | | ?????????????????????????????????????????????????? | | ?????????????????????????????????????????????????? | | ?????????????????????????????????????????????????? | | ?????????????????????????????????????????????????? | | ?????????????????????????????????????????????????? | | ?????????????????????????????????????????????????? | | ?????????????????????????????????????????????????? | | ?????????????????????????????????????????????????? | | ?????????????????????????????????????????????????? | | ?????????????????????????????????????????????????? | +----------------------------------------------------+ Best States ------------- Heat Dissipation 56 Energy Generation 35 Energy Capacity 445 Matter Stores 300 Matter Capacity 300 Sight Range 18 Terrain Scan Range 14 Terrain Scan Density 10 ECM Strength 1 Armor Coverage 225 Resistance: KI 20 Resistance: TH 45 Resistance: EX 20 Resistance: EM 20 Resistance: I 20 Resistance: S 20 Resistance: P 20 Propulsion Shielding 33 Evasion (%) 44 Recoil Reduction 4 Offensive Hacking 10 Authchip Count 3 Item Schematics ----------------- None Robot Schematics ------------------ None Fabricated ------------ Nothing Alien Tech Used ----------------- None Achievements -------------- Packrat Challenges ------------ None Game ------ Seed DisassembledOmegaSlayer Manual? 0 Play Time 00:44:44 Cumulative 29.9 hours Start 2024.10.18 @ 22:12:32 End 2024.10.18 @ 22:55:52 Sessions 1 Manual Loads 0 Difficulty Adventurer Special Mode None Game No. 76 Rogue 55 Adventurer 21 Explorer 0 Win Type - Total 1 Types 1/0/0/0/0/0/0/0/0 Lore% 14 Gallery% 39 Achievement% 33 Wizard Run 0 Options --------- Layout 1 ASCII 0 Keyboard 0 Movement Arrows Keybinds 0 Fullscreen 1 Font 36/Smallcaps Map View 55x43 Zoom Use 0% Tactical HUD 0 Map Filters NONE Filters NONE Steam 1 RUN: dea88f5e-a501-438e-b466-65fa211f17d1